fUSD/lending_fUSD_20240426
["ID","MTS","AMOUNT","RATE_DAILY","PERIOD"]
[323634511,1714145477773,-500.0,0.00012366,2]
[323634512,1714145477782,-3817.15,0.00012366,2]
[323634513,1714145477791,-5254.57,0.00012366,2]
[323634514,1714145477802,-2184.25,0.00012366,2]
[323634515,1714145477811,-500.0,0.00012366,2]
[323634516,1714145477820,-500.0,0.00012366,2]
[323634517,1714145477829,-3185.01,0.00012366,2]
[323634518,1714145477838,-500.0,0.00012366,2]
[323634519,1714145477847,-500.0,0.00012366,2]
[323634520,1714145477856,-1362.61,0.00012366,2]
[323634521,1714145477866,-712.71,0.00012366,2]
[323634522,1714145477875,-2348.72,0.00012366,2]
[323634523,1714145477884,-500.0,0.00012366,2]
[323634524,1714145477893,-500.0,0.00012366,2]
[323634525,1714145477904,-1785.46,0.00012366,2]
[323634526,1714145477914,-826.81,0.00012366,2]
[323634527,1714145477925,-500.0,0.00012366,2]
[323634528,1714145477934,-633.79,0.00012366,2]
[323634529,1714145477944,-5200.44,0.00012366,2]
[323634530,1714145477954,-500.0,0.00012366,2]
[323634531,1714145477964,-500.0,0.00012366,2]
[323634532,1714145477973,-590.67,0.00012366,2]
[323634533,1714145477983,-1544.45,0.00012366,2]
[323634534,1714145477992,-2900.04,0.00012366,2]
[323634535,1714145478002,-500.0,0.00012366,2]
[323634536,1714145478012,-500.0,0.00012366,2]
[323634537,1714145478022,-829.65,0.00012366,2]
[323634538,1714145478032,-829.16,0.00012368,2]
[323634539,1714145478041,-500.0,0.00012368,2]
[323634540,1714145478053,-500.0,0.00012368,2]
[323634541,1714145478065,-673.82,0.00012368,2]
[323634542,1714145478080,-334.4551527,0.00012368,2]
[323634543,1714145478090,-364.51608587,0.00012368,2]
[323634544,1714145478100,-510.16,0.00012368,2]
[323634545,1714145478110,-500.0,0.00012368,2]
[323634546,1714145478120,-500.0,0.00012368,2]
[323634547,1714145478129,-716.44,0.00012368,2]
[323634548,1714145478138,-544.66,0.00012368,2]
[323634549,1714145478149,-500.0,0.00012368,2]
[323634550,1714145478158,-746.73,0.00012368,2]
[323634551,1714145478168,-500.0,0.00012368,2]
[323634552,1714145478177,-500.0,0.00012368,2]
[323634553,1714145478187,-500.0,0.00012368,2]
[323634554,1714145478196,-500.0,0.00012368,2]
[323634555,1714145478206,-500.0,0.00012368,2]
[323634556,1714145478215,-500.0,0.00012368,2]
[323634557,1714145478224,-500.0,0.00012368,2]
[323634558,1714145478233,-500.0,0.00012368,2]
[323634559,1714145478243,-500.0,0.00012368,2]
[323634560,1714145478253,-934.35,0.00012368,2]
[323634561,1714145478262,-1569.46,0.00012368,2]
[323634562,1714145478271,-559.58,0.00012368,2]
[323634563,1714145478281,-1558.28,0.00012368,2]
[323634564,1714145478290,-500.0,0.00012368,2]
[323634565,1714145478303,-500.0,0.00012368,2]
[323634566,1714145478313,-1331.33,0.00012368,2]
[323634567,1714145478322,-500.0,0.00012368,2]
[323634568,1714145478331,-3786.48,0.00012368,2]
[323634569,1714145478342,-500.0,0.00012368,2]
[323634570,1714145478351,-4582.64,0.00012368,2]
[323634571,1714145478361,-500.0,0.00012368,2]
[323634572,1714145478370,-1343.38,0.00012368,2]
[323634573,1714145478380,-2248.4,0.00012368,2]
[323634574,1714145478390,-9950.43,0.00012368,2]
[323634575,1714145478399,-500.0,0.00012368,2]
[323634576,1714145478408,-605.98,0.00012368,2]
[323634577,1714145478417,-500.0,0.00012368,2]
[323634578,1714145478426,-501.16,0.00012368,2]
[323634579,1714145478437,-698.68,0.0001237,2]
[323634580,1714145478448,-500.0,0.0001237,2]
[323634581,1714145478458,-500.0,0.0001237,2]
[323634582,1714145478468,-500.0,0.0001237,2]
[323634583,1714145478477,-500.0,0.0001237,2]
[323634584,1714145478486,-500.0,0.0001237,2]
[323634585,1714145478495,-500.0,0.0001237,2]
[323634586,1714145478505,-500.0,0.0001237,2]
[323634587,1714145478515,-266.64,0.0001237,2]
[323634588,1714145478524,-500.0,0.0001237,2]
[323634589,1714145478533,-500.0,0.0001237,2]
[323634590,1714145478543,-500.0,0.0001237,2]
[323634591,1714145478554,-500.0,0.0001237,2]
[323634592,1714145478564,-946.71,0.0001237,2]
[323634593,1714145478574,-500.0,0.0001237,2]
[323634594,1714145478584,-712.61,0.0001237,2]
[323634595,1714145478595,-500.0,0.0001237,2]
[323634596,1714145478607,-500.0,0.0001237,2]
[323634597,1714145478617,-1437.61,0.0001237,2]
[323634598,1714145478627,-500.0,0.0001237,2]
[323634599,1714145478636,-500.0,0.0001237,2]
[323634600,1714145478646,-500.0,0.0001237,2]
[323634601,1714145478656,-544.27,0.0001237,2]
[323634602,1714145478667,-500.0,0.0001237,2]
[323634603,1714145478676,-839.62,0.0001237,2]
[323634604,1714145478686,-844.84,0.0001237,2]
[323634605,1714145478695,-500.0,0.0001237,2]
[323634606,1714145478704,-571.21,0.0001237,2]
[323634607,1714145478713,-500.0,0.0001237,2]
[323634608,1714145478724,-698.56,0.0001237,2]
[323634609,1714145478735,-500.0,0.0001237,2]
[323634610,1714145478744,-500.0,0.0001237,2]
[323634611,1714145478754,-508.46,0.0001237,2]
[323634612,1714145478763,-884.98,0.0001237,2]
[323634613,1714145478773,-1413.25,0.0001237,2]
[323634614,1714145478782,-500.0,0.0001237,2]
[323634615,1714145478792,-500.0,0.0001237,2]
[323634616,1714145478803,-500.0,0.0001237,2]
[323634617,1714145479011,-500.0,0.0001237,2]
[323634618,1714145479021,-500.0,0.0001237,2]
[323634619,1714145479031,-500.0,0.0001237,2]
[323634620,1714145479040,-1640.01,0.0001237,2]
[323634621,1714145479052,-500.0,0.0001237,2]
[323634622,1714145479064,-820.92,0.0001237,2]
[323634623,1714145479073,-1253.08,0.0001237,2]
[323634624,1714145479083,-882.15,0.0001237,2]
[323634625,1714145479093,-738.06,0.0001237,2]
[323634626,1714145479103,-2238.5,0.0001237,2]
[323634627,1714145479113,-2085.13,0.0001237,2]
[323634628,1714145479123,-500.0,0.0001237,2]
[323634629,1714145479132,-500.0,0.0001237,2]
[323634630,1714145479141,-500.0,0.0001237,2]
[323634631,1714145479152,-2408.59,0.0001237,2]
[323634632,1714145479162,-500.0,0.0001237,2]
[323634633,1714145479171,-3335.45,0.0001237,2]
[323634634,1714145479181,-678.9,0.0001237,2]
[323634635,1714145479191,-500.0,0.0001237,2]
[323634636,1714145479200,-500.0,0.0001237,2]
[323634637,1714145479209,-500.0,0.0001237,2]
[323634638,1714145479219,-500.0,0.0001237,2]
[323634639,1714145479228,-648.54,0.0001237,2]
[323634640,1714145479238,-500.0,0.0001237,2]
[323634641,1714145479247,-500.0,0.0001237,2]
[323634642,1714145479257,-500.0,0.0001237,2]
[323634643,1714145479266,-500.0,0.0001237,2]
[323634644,1714145479276,-500.0,0.0001237,2]
[323634645,1714145479286,-959.75,0.0001237,2]
[323634646,1714145479295,-500.5119372,0.00012387,2]
[323634647,1714145479306,-625.53862055,0.00012387,2]
[323634648,1714145479316,-500.0,0.00012387,2]
[323634649,1714145479325,-645.24,0.00012387,2]
[323634650,1714145479335,-500.0,0.00012387,2]
[323634651,1714145479345,-581.49,0.00012387,2]
[323634652,1714145479354,-500.0,0.00012387,2]
[323634653,1714145479363,-518.66,0.00012387,2]
[323634654,1714145479372,-500.0,0.00012387,2]
[323634655,1714145479382,-500.0,0.00012387,2]
[323634656,1714145479391,-500.0,0.00012387,2]
[323634657,1714145479402,-697.35,0.00012387,2]
[323634658,1714145479412,-798.33,0.00012387,2]
[323634659,1714145479421,-500.0,0.00012387,2]
[323634660,1714145479430,-500.0,0.00012387,2]
[323634661,1714145479439,-438.32769373,0.00012387,2]
[323634662,1714145479448,-566.97,0.00012387,2]
[323634663,1714145479458,-531.09,0.00012387,2]
[323634664,1714145479467,-676.2,0.00012387,2]
[323634665,1714145479476,-500.0,0.00012387,2]
[323634666,1714145479485,-781.48,0.00012387,2]
[323634667,1714145479494,-459.8156491,0.00012387,2]
[323634668,1714145479504,-500.0,0.00012387,2]
[323634669,1714145479513,-229.59456549,0.00012387,2]
[323634670,1714145479523,-500.0,0.00012387,2]
[323634671,1714145479532,-530.74,0.00012387,2]
[323634672,1714145479542,-500.0,0.00012387,2]
[323634673,1714145479553,-500.0,0.00012387,2]
[323634674,1714145479562,-500.0,0.00012387,2]
[323634675,1714145479572,-500.0,0.00012387,2]
[323634676,1714145479582,-500.0,0.00012387,2]
[323634677,1714145479591,-550.64,0.00012387,2]
[323634678,1714145479601,-229.67,0.00012387,2]
[323634679,1714145479610,-500.0,0.00012387,2]
[323634680,1714145479620,-500.0,0.00012387,2]
[323634681,1714145479630,-500.0,0.00012387,2]
[323634682,1714145479640,-500.0,0.00012387,2]
[323634683,1714145479651,-500.0,0.00012387,2]
[323634684,1714145479662,-500.0,0.00012387,2]
[323634685,1714145479672,-702.05,0.00012387,2]
[323634686,1714145479681,-500.0,0.00012387,2]
[323634687,1714145479693,-500.0,0.00012387,2]
[323634688,1714145479704,-500.0,0.00012387,2]
[323634689,1714145479713,-500.0,0.00012387,2]
[323634690,1714145479723,-500.0,0.00012387,2]
[323634691,1714145479732,-836.12,0.00012387,2]
[323634692,1714145479741,-500.0,0.00012387,2]
[323634693,1714145479751,-500.0,0.00012387,2]
[323634694,1714145479761,-861.98,0.00012387,2]
[323634695,1714145479770,-500.0,0.00012387,2]
[323634696,1714145479779,-763.82,0.00012387,2]
[323634697,1714145479789,-500.0,0.00012387,2]
[323634698,1714145479799,-500.0,0.00012387,2]
[323634699,1714145479809,-570.59,0.00012387,2]
[323634700,1714145479818,-500.0,0.00012387,2]
[323634701,1714145479829,-500.0,0.00012387,2]
[323634702,1714145479839,-500.0,0.00012387,2]
[323634703,1714145479849,-500.0,0.00012387,2]
[323634704,1714145479858,-500.0,0.00012387,2]
[323634705,1714145479868,-500.0,0.00012387,2]
[323634706,1714145479878,-500.0,0.00012387,2]
[323634707,1714145479888,-500.0,0.00012387,2]
[323634708,1714145479898,-500.0,0.00012387,2]
[323634709,1714145479908,-500.0,0.00012387,2]
[323634710,1714145479918,-500.0,0.00012387,2]
[323634711,1714145479927,-571.54,0.00012387,2]
[323634712,1714145479938,-500.0,0.00012387,2]
[323634713,1714145479947,-500.0,0.00012387,2]
[323634714,1714145479957,-500.0,0.00012387,2]
[323634715,1714145479967,-900.74,0.00012387,2]
[323634716,1714145479976,-500.0,0.00012387,2]
[323634717,1714145479985,-500.0,0.00012387,2]
[323634718,1714145479995,-500.0,0.00012387,2]
[323634719,1714145480004,-500.0,0.00012387,2]
[323634720,1714145480014,-500.0,0.00012387,2]
[323634721,1714145480024,-586.42067035,0.00012387,2]
[323634722,1714145480033,-500.0,0.00012387,2]
[323634723,1714145480043,-384.88418833,0.00012387,2]
[323634724,1714145480054,-500.0,0.00012387,2]
[323634725,1714145480065,-500.0,0.00012387,2]
[323634726,1714145480078,-500.0,0.00012387,2]
[323634727,1714145480088,-960.89,0.00012387,2]
[323634728,1714145480097,-554.19,0.00012387,2]
[323634729,1714145480107,-500.0,0.00012387,2]
[323634730,1714145480118,-500.0,0.00012387,2]
[323634731,1714145480127,-588.51,0.00012387,2]
[323634732,1714145480137,-500.0,0.00012387,2]
[323634733,1714145480149,-500.0,0.00012387,2]
[323634734,1714145480158,-500.0,0.00012387,2]
[323634735,1714145480168,-500.0,0.00012387,2]
[323634736,1714145480178,-1077.05308644,0.00012408,2]
[323634737,1714145480188,-6680.62790118,0.00012409,2]
[323634738,1714145480198,-710.3,0.0001245,2]
[323634739,1714145480208,-160.0,0.00012465,2]
[323634740,1714145480217,-3824.24,0.00012469,2]
[323634741,1714145480226,-545.6,0.00012469,2]
[323634742,1714145480236,-500.0,0.00012469,2]
[323634743,1714145480245,-673.94,0.00012469,2]
[323634744,1714145480255,-541.6,0.00012469,2]
[323634745,1714145480265,-1881.64,0.00012469,2]
[323634746,1714145480274,-500.0,0.00012469,2]
[323634747,1714145480284,-1644.29,0.00012469,2]
[323634748,1714145480294,-3222.37,0.00012469,2]
[323634749,1714145480307,-6436.09,0.00012469,2]
[323634750,1714145480316,-500.0,0.00012469,2]
[323634751,1714145480326,-685.16,0.00012469,2]
[323634752,1714145480336,-500.0,0.00012469,2]
[323634753,1714145480346,-774.55,0.00012469,2]
[323634754,1714145480355,-500.0,0.0001247,2]
[323634755,1714145480364,-603.0,0.0001247,2]
[323634756,1714145480374,-500.0,0.0001247,2]
[323634757,1714145480383,-545.47,0.0001247,2]
[323634758,1714145480392,-739.58,0.0001247,2]
[323634759,1714145480402,-525.7,0.0001247,2]
[323634760,1714145480412,-549.71,0.0001247,2]
[323634761,1714145480421,-500.0,0.0001247,2]
[323634762,1714145480431,-500.0,0.0001247,2]
[323634763,1714145480440,-500.0,0.0001247,2]
[323634764,1714145480449,-634.29,0.0001247,2]
[323634765,1714145480459,-500.0,0.0001247,2]
[323634766,1714145480468,-1502.18,0.0001247,2]
[323634767,1714145480478,-500.0,0.0001247,2]
[323634768,1714145480487,-500.0,0.0001247,2]
[323634769,1714145480497,-500.0,0.0001247,2]
[323634770,1714145480507,-500.0,0.0001247,2]
[323634771,1714145480516,-500.0,0.0001247,2]
[323634772,1714145480525,-534.58,0.0001247,2]
[323634773,1714145480534,-500.0,0.0001247,2]
[323634774,1714145480544,-500.0,0.0001247,2]
[323634775,1714145480556,-500.0,0.0001247,2]
[323634776,1714145480566,-500.0,0.0001247,2]
[323634777,1714145480575,-500.0,0.0001247,2]
[323634778,1714145480585,-630.02,0.0001247,2]
[323634779,1714145480595,-500.0,0.0001247,2]
[323634780,1714145480605,-500.0,0.0001247,2]
[323634781,1714145480615,-666.6,0.0001247,2]
[323634782,1714145480625,-500.0,0.0001247,2]
[323634783,1714145480634,-500.0,0.0001247,2]
[323634784,1714145480644,-500.0,0.0001247,2]
[323634785,1714145480654,-500.0,0.0001247,2]
[323634786,1714145480663,-500.0,0.0001247,2]
[323634787,1714145480673,-500.0,0.0001247,2]
[323634788,1714145480683,-500.0,0.0001247,2]
[323634789,1714145480692,-500.0,0.0001247,2]
[323634790,1714145480702,-1047.82,0.0001247,2]
[323634791,1714145480711,-500.0,0.0001247,2]
[323634792,1714145480720,-662.85,0.0001247,2]
[323634793,1714145480730,-500.0,0.0001247,2]
[323634794,1714145480739,-500.0,0.0001247,2]
[323634795,1714145480748,-500.0,0.0001247,2]
[323634796,1714145480757,-500.0,0.0001247,2]
[323634797,1714145480766,-500.0,0.0001247,2]
[323634798,1714145480776,-500.0,0.0001247,2]
[323634799,1714145480785,-500.0,0.0001247,2]
[323634800,1714145480794,-500.0,0.0001247,2]
[323634801,1714145480809,-1225.54,0.0001247,2]
[323634802,1714145480818,-919.21,0.0001247,2]
[323634803,1714145480827,-500.0,0.0001247,2]
[323634804,1714145480837,-500.0,0.0001247,2]
[323634805,1714145480845,-500.0,0.0001247,2]
[323634806,1714145480854,-500.0,0.0001247,2]
[323634807,1714145480863,-500.0,0.0001247,2]
[323634808,1714145480872,-500.0,0.0001247,2]
[323634809,1714145480881,-500.0,0.0001247,2]
[323634810,1714145480890,-500.0,0.0001247,2]
[323634811,1714145480900,-500.0,0.0001247,2]
[323634812,1714145480910,-500.0,0.0001247,2]
[323634813,1714145480920,-500.0,0.0001247,2]
[323634814,1714145480930,-500.0,0.0001247,2]
[323634815,1714145480939,-500.0,0.0001247,2]
[323634816,1714145480949,-500.0,0.0001247,2]
[323634817,1714145480958,-500.0,0.0001247,2]
[323634818,1714145480967,-500.0,0.0001247,2]
[323634819,1714145480976,-500.0,0.0001247,2]
[323634820,1714145480986,-500.0,0.0001247,2]
[323634821,1714145480995,-928.17,0.0001247,2]
[323634822,1714145481005,-500.0,0.0001247,2]
[323634823,1714145481015,-500.0,0.0001247,2]
[323634824,1714145481024,-500.0,0.0001247,2]
[323634825,1714145481034,-500.0,0.0001247,2]
[323634826,1714145481043,-500.0,0.0001247,2]
[323634827,1714145481057,-500.0,0.0001247,2]
[323634828,1714145481067,-500.0,0.0001247,2]
[323634829,1714145481079,-500.0,0.0001247,2]
[323634830,1714145481088,-500.0,0.0001247,2]
[323634831,1714145481097,-500.0,0.0001247,2]
[323634832,1714145481109,-701.6,0.0001247,2]
[323634833,1714145481118,-500.0,0.0001247,2]
[323634834,1714145481128,-500.0,0.0001247,2]
[323634835,1714145481138,-500.0,0.0001247,2]
[323634836,1714145481149,-581.24,0.0001247,2]
[323634837,1714145481158,-659.79,0.0001247,2]
[323634838,1714145481168,-500.0,0.0001247,2]
[323634839,1714145481178,-500.0,0.0001247,2]
[323634840,1714145481187,-500.0,0.0001247,2]
[323634841,1714145481197,-500.0,0.0001247,2]
[323634842,1714145481207,-542.3,0.0001247,2]
[323634843,1714145481216,-500.0,0.0001247,2]
[323634844,1714145481226,-580.07,0.0001247,2]
[323634845,1714145481237,-500.0,0.0001247,2]
[323634846,1714145481246,-820.71,0.0001247,2]
[323634847,1714145481255,-500.0,0.00012471,2]
[323634848,1714145481265,-241.17096355,0.00012471,2]
[323634849,1714145481274,-638.87,0.00012471,2]
[323634850,1714145481284,-500.0,0.00012471,2]
[323634851,1714145481294,-500.0,0.00012471,2]
[323634852,1714145481305,-500.0,0.00012471,2]
[323634853,1714145481314,-500.0,0.00012471,2]
[323634854,1714145481324,-500.0,0.00012471,2]
[323634855,1714145481334,-500.0,0.00012471,2]
[323634856,1714145481344,-500.0,0.00012471,2]
[323634857,1714145481353,-500.0,0.00012471,2]
[323634858,1714145481363,-500.0,0.00012471,2]
[323634859,1714145481372,-500.0,0.00012471,2]
[323634860,1714145481455,-500.0,0.00012471,2]
[323634861,1714145481465,-653.45,0.00012471,2]
[323634862,1714145481475,-500.0,0.00012471,2]
[323634863,1714145481485,-313.43571617,0.00012471,2]
[323634864,1714145481495,-507.82121555,0.00012471,2]
[323634865,1714145481504,-500.0,0.00012471,2]
[323634866,1714145481513,-500.0,0.00012471,2]
[323634867,1714145481523,-620.2,0.00012471,2]
[323634868,1714145481533,-500.0,0.00012471,2]
[323634869,1714145481542,-534.61,0.00012471,2]
[323634870,1714145481555,-500.0,0.00012471,2]
[323634871,1714145481565,-500.0,0.00012471,2]
[323634872,1714145481575,-500.0,0.00012471,2]
[323634873,1714145481585,-500.0,0.00012471,2]
[323634874,1714145481594,-500.0,0.00012471,2]
[323634875,1714145481604,-759.71,0.00012471,2]
[323634876,1714145481614,-500.0,0.00012471,2]
[323634877,1714145481624,-609.68,0.00012471,2]
[323634878,1714145481633,-500.0,0.00012471,2]
[323634879,1714145481643,-500.0,0.00012471,2]
[323634880,1714145481652,-500.0,0.00012471,2]
[323634881,1714145481662,-500.0,0.00012471,2]
[323634882,1714145481672,-505.49466685,0.00012471,2]
[323634883,1714145481682,-500.0,0.00012471,2]
[323634884,1714145481691,-584.50122025,0.00012471,2]
[323634885,1714145481702,-500.0,0.00012471,2]
[323634886,1714145481712,-661.69,0.00012471,2]
[323634887,1714145481722,-582.31,0.00012471,2]
[323634888,1714145481732,-500.0,0.00012471,2]
[323634889,1714145481742,-593.88,0.00012471,2]
[323634890,1714145481752,-500.0,0.00012471,2]
[323634891,1714145481762,-232.97826171,0.00012471,2]
[323634892,1714145481772,-500.0,0.00012471,2]
[323634893,1714145481782,-500.0,0.00012471,2]
[323634894,1714145481792,-500.0,0.00012471,2]
[323634895,1714145481804,-150.0,0.00012471,2]
[323634896,1714145481814,-500.0,0.00012471,2]
[323634897,1714145481824,-500.0,0.00012471,2]
[323634898,1714145481834,-666.97,0.00012471,2]
[323634899,1714145481844,-500.0,0.00012471,2]
[323634900,1714145481853,-507.42691928,0.00012471,2]
[323634901,1714145481863,-736.67,0.00012471,2]
[323634902,1714145481872,-500.0,0.00012471,2]
[323634903,1714145481882,-500.0,0.00012471,2]
[323634904,1714145481892,-500.0,0.00012471,2]
[323634905,1714145481901,-500.0,0.00012471,2]
[323634906,1714145481910,-500.0,0.00012471,2]
[323634907,1714145481921,-500.0,0.00012471,2]
[323634908,1714145481930,-500.0,0.00012471,2]
[323634909,1714145481940,-313.3063074,0.00012471,2]
[323634910,1714145481950,-500.0,0.00012471,2]
[323634911,1714145481959,-500.0,0.00012471,2]
[323634912,1714145481969,-540.76,0.00012471,2]
[323634913,1714145481978,-500.0,0.00012471,2]
[323634914,1714145481988,-500.0,0.00012471,2]
[323634915,1714145481997,-500.0,0.00012471,2]
[323634916,1714145482007,-500.0,0.00012471,2]
[323634917,1714145482016,-500.0,0.00012471,2]
[323634918,1714145482026,-500.0,0.00012471,2]
[323634919,1714145482035,-500.0,0.00012471,2]
[323634920,1714145482045,-500.0,0.00012471,2]
[323634921,1714145482059,-536.98,0.00012471,2]
[323634922,1714145482069,-500.0,0.00012471,2]
[323634923,1714145482081,-500.0,0.00012471,2]
[323634924,1714145482090,-1164.42,0.00012471,2]
[323634925,1714145482100,-500.0,0.00012471,2]
[323634926,1714145482110,-575.36,0.00012471,2]
[323634927,1714145482120,-500.0,0.00012471,2]
[323634928,1714145482129,-500.0,0.00012471,2]
[323634929,1714145482139,-500.0,0.00012471,2]
[323634930,1714145482149,-500.0,0.00012471,2]
[323634931,1714145482158,-500.0,0.00012471,2]
[323634932,1714145482168,-503.95383762,0.00012471,2]
[323634933,1714145482178,-500.0,0.00012471,2]
[323634934,1714145482187,-206.37273197,0.00012471,2]
[323634935,1714145482197,-500.0,0.00012471,2]
[323634936,1714145482206,-500.0,0.00012471,2]
[323634937,1714145482216,-500.0,0.00012471,2]
[323634938,1714145482225,-500.0,0.00012471,2]
[323634939,1714145482234,-562.94,0.00012471,2]
[323634940,1714145482244,-500.0,0.00012471,2]
[323634941,1714145482253,-500.0,0.00012471,2]
[323634942,1714145482262,-500.0,0.00012471,2]
[323634943,1714145482271,-597.36,0.00012471,2]
[323634944,1714145482280,-500.0,0.00012471,2]
[323634945,1714145482289,-500.0,0.00012471,2]
[323634946,1714145482299,-500.0,0.00012471,2]
[323634947,1714145482316,-500.0,0.00012471,2]
[323634948,1714145482326,-500.0,0.00012471,2]
[323634949,1714145482335,-500.0,0.00012471,2]
[323634950,1714145482345,-500.0,0.00012471,2]
[323634951,1714145482354,-500.0,0.00012471,2]
[323634952,1714145482364,-500.0,0.00012471,2]
[323634953,1714145482373,-500.0,0.00012471,2]
[323634954,1714145482383,-500.0,0.00012471,2]
[323634955,1714145482392,-500.0,0.00012471,2]
[323634956,1714145482401,-500.0,0.00012471,2]
[323634957,1714145482410,-500.0,0.00012471,2]
[323634958,1714145482419,-500.0,0.00012471,2]
[323634959,1714145482428,-635.03,0.00012471,2]
[323634960,1714145482438,-500.0,0.00012471,2]
[323634961,1714145482447,-500.0,0.00012471,2]
[323634962,1714145482457,-500.0,0.00012471,2]
[323634963,1714145482466,-221.81107298,0.00012471,2]
[323634964,1714145482475,-500.0,0.00012471,2]
[323634965,1714145482485,-178.43,0.00012471,2]
[323634966,1714145482495,-500.0,0.00012471,2]
[323634967,1714145482505,-500.0,0.00012471,2]
[323634968,1714145482515,-500.0,0.00012471,2]
[323634969,1714145482524,-779.6,0.00012471,2]
[323634970,1714145482534,-500.0,0.00012471,2]
[323634971,1714145482544,-500.0,0.00012471,2]
[323634972,1714145482558,-500.0,0.00012471,2]
[323634973,1714145482568,-500.0,0.00012471,2]
[323634974,1714145482578,-500.0,0.00012471,2]
[323634975,1714145482587,-500.0,0.00012471,2]
[323634976,1714145482597,-174.75,0.00012471,2]
[323634977,1714145482606,-591.58,0.00012471,2]
[323634978,1714145482616,-500.0,0.00012471,2]
[323634979,1714145482625,-500.0,0.00012471,2]
[323634980,1714145482634,-500.0,0.00012471,2]
[323634981,1714145482644,-500.0,0.00012471,2]
[323634982,1714145482654,-545.99,0.00012471,2]
[323634983,1714145482663,-500.0,0.00012471,2]
[323634984,1714145482673,-500.0,0.00012471,2]
[323634985,1714145482684,-500.0,0.00012471,2]
[323634986,1714145482693,-500.0,0.00012471,2]
[323634987,1714145482702,-500.0,0.00012471,2]
[323634988,1714145482711,-500.0,0.00012471,2]
[323634989,1714145482721,-500.0,0.00012471,2]
[323634990,1714145482731,-500.0,0.00012471,2]
[323634991,1714145482740,-500.0,0.00012471,2]
[323634992,1714145482750,-500.0,0.00012471,2]
[323634993,1714145482759,-628.02,0.00012471,2]
[323634994,1714145482768,-500.0,0.00012471,2]
[323634995,1714145482777,-500.0,0.00012471,2]
[323634996,1714145482787,-500.0,0.00012471,2]
[323634997,1714145482796,-500.0,0.00012471,2]
[323634998,1714145482810,-500.0,0.00012471,2]
[323634999,1714145482820,-500.0,0.00012471,2]
[323635000,1714145482830,-500.0,0.00012471,2]
[323635001,1714145482839,-500.0,0.00012471,2]
[323635002,1714145482849,-500.0,0.00012471,2]
[323635003,1714145482858,-505.2676117,0.00012471,2]
[323635004,1714145482867,-500.0,0.00012471,2]
[323635005,1714145482877,-500.0,0.00012471,2]
[323635006,1714145482886,-500.0,0.00012471,2]
[323635007,1714145482895,-500.0,0.00012471,2]
[323635008,1714145482904,-500.0,0.00012471,2]
[323635009,1714145482913,-993.18,0.00012471,2]
[323635010,1714145482922,-500.0,0.00012471,2]